bitfinex-derivatives/quotes_SOLF0:USTF0_20240930
["timestamp","ask_amount","ask_price","bid_price","bid_amount"]
[1727661692748,3.17,157.69,157.66,19.51]
[1727661693241,3.1703,157.67,157.63,19.51]
[1727661693642,1.2472,157.72,157.63,19.51]
[1727661693946,2.7173,157.71,157.63,19.51]
[1727661694347,3.1706,157.66,157.63,19.51]
[1727661694746,1.3489,157.71,157.64,3.1709]
[1727661694951,3.1699,157.7,157.66,19.51]
[1727661695348,3.1696,157.71,157.66,19.51]
[1727661695546,0.12502,157.73,157.69,19.51]
[1727661695953,3.1697,157.71,157.69,19.51]
[1727661697065,3.24721358,157.73,157.63,1.2826]
[1727661697746,3.1703,157.68,157.63,1.2826]
[1727661697947,3.24721358,157.73,157.63,1.2826]
[1727661698146,3.1697,157.7,157.63,1.2826]
[1727661698448,3.24721358,157.73,157.63,1.2826]
[1727661698755,0.12502,157.73,157.67,19.51]
[1727661699350,3.1695,157.72,157.67,19.51]
[1727661699547,0.12502,157.73,157.67,19.51]
[1727661700060,3.1696,157.71,157.67,19.51]
[1727661700243,0.12502,157.73,157.67,19.51]
[1727661700648,3.1695,157.72,157.67,22.6803]
[1727661700846,0.12502,157.73,157.7,19.51]
[1727661701151,3.1694,157.72,157.7,19.51]
[1727661701547,0.12502,157.73,157.7,19.51]
[1727661702848,3.1695,157.72,157.7,19.51]
[1727661704351,3.1693,157.72,157.7,19.51]
[1727661704546,1.3489,157.78,157.7,19.51]
[1727661704752,1.3489,157.78,157.73,19.51]
[1727661705257,1.35902,157.79,157.73,19.51]
[1727661705258,0.12502,157.79,157.73,19.51]
[1727661705749,3.1683,157.78,157.73,19.51]
[1727661705951,0.12502,157.79,157.73,19.51]
[1727661706354,3.1683,157.78,157.73,19.51]
[1727661706561,0.12502,157.79,157.73,19.51]
[1727661707154,3.1685,157.77,157.73,19.51]
[1727661707349,0.12502,157.79,157.7,1.2459]
[1727661707560,0.12502,157.79,157.7,20.7559]
[1727661708362,0.12502,157.79,157.7,23.9256]
[1727661709251,0.12502,157.79,157.7,20.7559]
[1727661710355,0.12502,157.79,157.73,19.51]
[1727661710562,3.1687,157.76,157.73,19.51]
[1727661710857,0.12502,157.79,157.73,19.51]
[1727661711656,0.12502,157.79,157.74,12.18]
[1727661713358,0.12502,157.79,157.72,12.18]
[1727661715057,0.12502,157.79,157.74,12.18]
[1727661715253,3.1687,157.75,157.74,12.18]
[1727661716967,0.12502,157.79,157.7,12.18]
[1727661717466,3.1694,157.72,157.7,12.18]
[1727661717657,3.18074933,157.72,157.67,0.12502]
[1727661717857,12.18,157.78,157.67,12.30502]
[1727661718063,4.0284,157.77,157.67,12.30502]
[1727661718770,12.18,157.76,157.67,0.12502]
[1727661718968,12.18,157.74,157.67,0.12502]
[1727661719270,12.18,157.71,157.67,0.12502]
[1727661719459,3.7287,157.7,157.6,12.18]
[1727661719660,3.7287,157.7,157.58,19.5]
[1727661719661,6.82794045,157.7,157.58,19.5]
[1727661719962,6.82794045,157.7,157.56,2.653]
[1727661719963,3.1713,157.62,157.56,2.653]
[1727661720367,6.31430786,157.62,157.55,0.12502]
[1727661720868,3.1723,157.58,157.55,0.12502]
[1727661721458,3.20729492,157.61,157.55,0.12502]
[1727661721659,3.1726,157.56,157.55,0.12502]
[1727661722573,20.7381,157.59,157.45,22.0737]
[1727661722773,19.5,157.56,157.43,0.12502]
[1727661723075,97.36342993,157.59,157.43,0.12502]
[1727661723266,3.1738,157.5,157.43,0.12502]
[1727661725165,3.1738,157.5,157.43,3.30002]
[1727661725566,3.1738,157.5,157.43,0.12502]
[1727661729885,3.1736,157.51,157.44,3.1748]
[1727661730078,3.1736,157.51,157.45,19.5]
[1727661730481,1.3525,157.55,157.45,19.5]
[1727661730482,3.1734,157.52,157.45,22.6746]
[1727661730690,1.3525,157.55,157.45,19.5]
[1727661730888,68.56,157.57,157.48,19.5]
[1727661731090,3.1727,157.56,157.49,3.29882]
[1727661731286,68.56,157.57,157.51,19.5]
[1727661731497,3.1725,157.57,157.51,19.5]
[1727661731693,94.20279235,157.59,157.5,1.34]
[1727661731889,94.20279235,157.59,157.49,0.12502]
[1727661732781,3.1733,157.53,157.49,0.12502]
[1727661732980,94.20279235,157.59,157.49,0.12502]
[1727661733182,92.96469235,157.59,157.51,19.5]
[1727661733381,3.1724,157.57,157.51,22.6735]
[1727661733793,92.96469235,157.59,157.51,22.6735]
[1727661734000,3.1724,157.57,157.51,22.6735]
[1727661734203,92.96469235,157.59,157.52,3.1733]
[1727661734496,3.1725,157.57,157.51,19.5]
[1727661734882,3.1725,157.57,157.51,22.6734]
[1727661736493,3.1722,157.58,157.52,3.1733]
[1727661736682,92.96469235,157.59,157.51,19.5]
[1727661736890,92.96469235,157.59,157.52,1.3396]
[1727661737583,3.1723,157.58,157.53,3.1731]
[1727661737789,0.12502,157.61,157.52,1.3396]
[1727661737987,0.12502,157.61,157.56,19.5]
[1727661738201,3.1719,157.6,157.56,19.5]
[1727661738591,0.12502,157.61,157.52,1.3396]
[1727661738795,3.1723,157.58,157.52,4.5129]
[1727661738986,0.12502,157.61,157.52,1.3396]
[1727661739490,0.12502,157.61,157.53,19.5]
[1727661740195,0.12502,157.61,157.56,19.5]
[1727661740600,0.12502,157.61,157.53,3.1731]
[1727661740902,0.12502,157.61,157.52,1.3396]
[1727661741101,3.1723,157.58,157.52,4.5128]
[1727661741300,0.12502,157.61,157.52,1.3396]
[1727661741601,3.1728,157.55,157.5,2.6047]
[1727661741894,19.62502,157.61,157.5,1.3172]
[1727661742195,3.173,157.54,157.5,1.3172]
[1727661742396,1.3257,157.6,157.49,0.12502]
[1727661742696,19.5,157.59,157.49,0.12502]
[1727661742888,3.1738,157.5,157.49,0.12502]
[1727661743291,1.2934,157.55,157.49,0.12502]
[1727661744900,1.364,157.58,157.49,0.12502]
[1727661745699,3.1727,157.56,157.49,0.12502]
[1727661746008,1.364,157.58,157.49,0.12502]
[1727661746300,3.1737,157.51,157.49,0.12502]
[1727661746908,1.364,157.58,157.49,0.12502]
[1727661747095,3.1732,157.53,157.49,0.12502]
[1727661747502,1.364,157.58,157.49,0.12502]
[1727661747701,3.1728,157.55,157.49,0.12502]
[1727661748102,1.364,157.58,157.49,0.12502]
[1727661748695,3.1727,157.56,157.5,3.1738]
[1727661749300,3.1727,157.56,157.51,3.1735]
[1727661749500,1.2696,157.6,157.5,19.5]
[1727661750108,3.1725,157.57,157.52,3.1733]
[1727661750503,1.2696,157.6,157.49,0.12502]
[1727661750702,3.1732,157.53,157.49,0.12502]
[1727661751705,1.2696,157.6,157.49,0.12502]
[1727661751706,19.5,157.59,157.49,0.12502]
[1727661752296,19.5,157.58,157.49,0.12502]
[1727661752606,19.5,157.56,157.49,0.12502]
[1727661752800,3.1738,157.5,157.49,0.12502]
[1727661753008,3.18909254,157.5,157.39,1.3238]
[1727661753203,19.5,157.53,157.39,1.3238]
[1727661753507,1.2944,157.52,157.39,1.3238]
[1727661753809,4.54161463,157.52,157.39,1.3238]
[1727661754014,4.54161463,157.52,157.39,4.4996]
[1727661754199,19.5,157.47,157.37,0.12502]
[1727661754404,1.3451,157.46,157.37,0.12502]
[1727661755108,3.175,157.44,157.37,0.12502]
[1727661755807,19.5,157.42,157.37,0.12502]
[1727661756204,3.1762,157.38,157.37,0.12502]
[1727661756401,1.349,157.43,157.37,0.12502]
[1727661756803,3.20117581,157.44,157.37,0.12502]
[1727661756999,1.349,157.45,157.37,0.12502]
[1727661757204,3.11567975,157.44,157.37,0.12502]
[1727661757900,3.1752,157.43,157.37,0.12502]
[1727661758114,1.349,157.45,157.37,0.12502]
[1727661758298,3.22755563,157.44,157.37,0.12502]
[1727661758712,1.349,157.45,157.37,0.12502]
[1727661760310,0.12502,157.49,157.37,0.12502]
[1727661760611,1.37582,157.49,157.38,19.5]
[1727661760800,2.70042,157.49,157.38,19.5]
[1727661761003,4.5197,157.46,157.39,3.1758]
[1727661761502,3.1748,157.45,157.39,3.1758]
[1727661762103,1.3451,157.46,157.38,19.5]
[1727661762498,2.70042,157.49,157.38,19.5]
[1727661762703,3.1746,157.46,157.4,3.1757]
[1727661763010,2.70042,157.49,157.38,19.5]
[1727661763209,3.1745,157.47,157.41,3.1755]
[1727661764212,2.70042,157.49,157.4,19.5]
[1727661764413,0.12502,157.49,157.4,19.5]
[1727661764810,0.12502,157.49,157.38,19.5]
[1727661765818,3.1746,157.46,157.38,19.5]
[1727661766316,0.12502,157.49,157.38,19.5]
[1727661766911,3.1745,157.47,157.41,3.1754]
[1727661767215,0.12502,157.49,157.41,3.1754]
[1727661767419,3.1746,157.46,157.4,3.1758]
[1727661767616,0.12502,157.49,157.38,19.5]
[1727661767812,0.12502,157.49,157.4,19.5]
[1727661768116,3.1743,157.48,157.4,19.5]
[1727661768409,0.12502,157.49,157.4,19.5]
[1727661769010,3.1744,157.47,157.43,3.1752]
[1727661769217,3.1744,157.47,157.4,19.5]
[1727661769516,0.12502,157.49,157.4,19.5]
[1727661770411,3.1744,157.47,157.4,19.5]
[1727661770614,3.1744,157.47,157.38,19.5]
[1727661770810,3.1744,157.47,157.42,3.1752]
[1727661771011,3.1749,157.45,157.37,2.70902]
[1727661771515,3.1749,157.45,157.41,3.1754]
[1727661772219,0.12502,157.49,157.41,3.1754]
[1727661772420,3.175,157.44,157.41,3.1754]
[1727661773317,3.1748,157.45,157.41,3.1754]
[1727661773518,0.12502,157.49,157.37,2.70902]
[1727661773819,0.12502,157.49,157.41,3.1756]
[1727661774123,3.1749,157.45,157.41,3.1756]
[1727661775018,3.1747,157.46,157.4,3.1757]
[1727661775320,0.12502,157.49,157.37,2.70902]
[1727661775829,3.1749,157.45,157.41,3.1756]
[1727661776222,0.12502,157.49,157.37,2.70902]
[1727661777623,0.12502,157.49,157.41,3.1755]
[1727661778027,3.1744,157.47,157.41,3.1755]
[1727661778230,0.12502,157.49,157.41,3.1755]
[1727661778728,0.12502,157.49,157.37,2.70902]
[1727661779026,0.12502,157.49,157.42,3.1752]
[1727661779215,3.1744,157.47,157.42,3.1752]
[1727661779821,3.1746,157.46,157.42,3.1752]
[1727661780027,0.12502,157.49,157.39,19.5]
[1727661780626,0.12502,157.49,157.41,3.1754]
[1727661781123,0.12502,157.49,157.39,19.5]
[1727661782126,3.1745,157.47,157.42,3.1754]
[1727661782327,3.1745,157.47,157.42,6.40587985]
[1727661782932,0.12502,157.49,157.37,2.70902]
[1727661783322,19.5,157.47,157.37,0.12502]
[1727661783517,0.12502,157.49,157.37,0.12502]
[1727661783518,3.1758,157.4,157.37,0.12502]
[1727661784033,3.176,157.4,157.37,0.12502]
[1727661784332,16.72675725,157.44,157.37,0.12502]
[1727661784538,2.5764,157.43,157.37,0.12502]
[1727661784832,3.1759,157.4,157.37,0.12502]
[1727661786127,3.1757,157.41,157.37,0.12502]
[1727661786723,2.5764,157.43,157.37,0.12502]
[1727661786925,2.5764,157.43,157.37,3.30122]
[1727661787333,3.176,157.39,157.37,0.12502]
[1727661787535,22.1164,157.43,157.37,0.12502]
[1727661787722,19.54,157.41,157.31,0.12502]
[1727661787924,3.1768,157.35,157.31,0.12502]
[1727661788231,19.54,157.41,157.31,0.12502]
[1727661788436,3.1759,157.4,157.31,3.30242]
[1727661788630,2.70142,157.43,157.31,0.12502]
[1727661789334,2.70142,157.43,157.31,3.30252]
[1727661790231,2.70142,157.43,157.32,3.1772]
[1727661790634,3.1764,157.38,157.32,3.1772]
[1727661790932,2.70142,157.43,157.31,0.12502]
[1727661791133,3.1759,157.4,157.31,0.12502]
[1727661791440,2.70142,157.43,157.31,0.12502]
[1727661791630,19.54,157.4,157.31,0.12502]
[1727661792340,22.24142,157.43,157.31,0.12502]
[1727661793240,2.70142,157.43,157.31,0.12502]
[1727661793438,19.54,157.39,157.31,0.12502]
[1727661794842,19.54,157.42,157.31,0.12502]
[1727661795032,3.1766,157.37,157.31,3.30262]
[1727661795336,2.70142,157.43,157.31,19.66502]
[1727661795543,3.1764,157.37,157.32,3.1773]
[1727661795732,2.70142,157.43,157.32,3.1773]
[1727661795928,2.70142,157.43,157.31,19.66502]
[1727661796228,3.1762,157.38,157.33,3.1772]
[1727661796432,3.1762,157.38,157.31,19.66502]
[1727661796634,3.1762,157.38,157.31,0.12502]
[1727661797035,2.70142,157.43,157.33,3.1772]
[1727661797240,3.1763,157.38,157.31,0.12502]
[1727661797645,3.1763,157.38,157.32,3.1772]
[1727661797843,19.54,157.42,157.31,0.12502]
[1727661798035,3.1768,157.35,157.31,0.12502]
[1727661798429,19.54,157.42,157.31,0.12502]
[1727661798833,2.70142,157.43,157.34,3.1768]
[1727661799135,2.70142,157.43,157.31,0.12502]
[1727661799631,3.1767,157.36,157.31,0.12502]
[1727661799831,2.70142,157.43,157.32,3.1772]
[1727661800040,2.70142,157.43,157.31,0.12502]
[1727661800540,3.1762,157.39,157.31,0.12502]
[1727661800942,2.70142,157.43,157.31,0.12502]
[1727661801846,2.70142,157.43,157.31,3.30242]
[1727661801847,3.1764,157.37,157.31,3.30242]
[1727661802237,2.70142,157.43,157.31,3.30242]
[1727661802445,2.70142,157.43,157.31,0.12502]
[1727661802646,19.54,157.4,157.31,0.12502]
[1727661802944,3.1771,157.34,157.31,0.12502]
[1727661804453,2.70142,157.43,157.31,3.30252]
[1727661804845,19.54,157.42,157.31,0.12502]
[1727661805039,19.54,157.39,157.31,0.12502]
[1727661805246,19.54,157.42,157.31,0.12502]
[1727661805547,12.2,157.42,157.31,12.32502]
[1727661806449,2.70142,157.43,157.31,0.12502]
[1727661806450,12.2,157.39,157.31,0.12502]
[1727661806643,2.70142,157.43,157.31,0.12502]
[1727661806843,12.2,157.37,157.31,0.12502]
[1727661807052,3.1772,157.33,157.31,0.12502]
[1727661807254,3.9317,157.36,157.31,0.12502]
[1727661807550,3.1774,157.32,157.31,0.12502]
[1727661808253,15.33701815,157.34,157.25,3.30362]
[1727661808750,12.2,157.32,157.25,0.12502]
[1727661809342,3.1782,157.28,157.25,0.12502]
[1727661809547,15.33701815,157.34,157.25,12.32502]
[1727661809754,12.2,157.34,157.25,12.32502]
[1727661809952,3.1776,157.31,157.25,15.50372]
[1727661810252,3.22794622,157.33,157.25,0.12502]
[1727661810455,3.1777,157.31,157.25,3.30382]
[1727661810755,12.2,157.34,157.25,0.12502]
[1727661810955,3.1777,157.31,157.25,3.30362]
[1727661811251,7.163335,157.36,157.27,12.2]
[1727661811455,3.1772,157.33,157.27,15.3783]
[1727661811654,7.163335,157.36,157.25,12.32502]
[1727661811856,19.363335,157.36,157.25,12.32502]
[1727661812049,3.1773,157.33,157.27,3.1782]
[1727661812246,3.9317,157.36,157.27,12.2]
[1727661812464,0.12502,157.37,157.29,12.2]
[1727661812759,0.12502,157.37,157.31,12.2]
[1727661813151,0.12502,157.37,157.34,3.1769]
[1727661813957,0.12502,157.37,157.36,3.1766]
[1727661814157,0.12502,157.43,157.36,19.54]
[1727661814563,0.12502,157.43,157.37,1.329]
[1727661814971,0.12502,157.43,157.4,3.1757]
[1727661815258,0.12502,157.43,157.37,1.329]
[1727661815661,0.12502,157.43,157.41,3.1754]
[1727661815862,0.12502,157.43,157.39,3.17034564]
[1727661816163,0.12502,157.43,157.39,19.54]
[1727661816366,0.12502,157.43,157.4,3.1757]
[1727661816755,0.12502,157.43,157.39,22.68809537]
[1727661816956,3.1744,157.47,157.43,3.1752]
[1727661817264,0.12502,157.49,157.45,19.54]
[1727661817454,0.12502,157.49,157.46,3.1745]
[1727661817659,0.12502,157.49,157.45,19.54]
[1727661817865,3.9983,157.59,157.48,19.54]
[1727661818065,7.25058871,157.59,157.49,3.1739]
[1727661818267,7.25058871,157.59,157.43,0.12502]
[1727661818268,3.24879402,157.56,157.43,0.12502]
[1727661818471,3.1737,157.51,157.43,19.66502]
[1727661818769,3.1737,157.51,157.46,3.1745]
[1727661818957,22.78879402,157.56,157.43,0.12502]
[1727661819165,3.174,157.49,157.44,3.1749]
[1727661819468,22.78879402,157.56,157.43,0.12502]
[1727661819669,3.1741,157.49,157.44,3.175]
[1727661819975,22.78879402,157.56,157.43,0.12502]
[1727661820770,3.1737,157.51,157.46,3.1746]
[1727661821167,22.78879402,157.56,157.46,3.1746]
[1727661821967,3.9983,157.59,157.47,3.1744]
[1727661822162,3.18392471,157.56,157.47,3.1744]
[1727661822368,3.1736,157.51,157.44,19.54]
[1727661822675,3.18392471,157.56,157.44,19.54]
[1727661823063,3.18392471,157.56,157.44,22.7149]
[1727661823366,19.54,157.54,157.43,0.12502]
[1727661823569,3.1736,157.51,157.43,0.12502]
[1727661823867,19.54,157.54,157.43,0.12502]
[1727661824259,19.54,157.51,157.43,0.12502]
[1727661824461,3.8073,157.5,157.43,0.12502]
[1727661825768,3.1745,157.47,157.43,0.12502]
[1727661826675,3.8073,157.5,157.43,0.12502]
[1727661827273,3.1748,157.45,157.43,0.12502]
[1727661827477,3.8073,157.5,157.43,0.12502]
[1727661827974,3.1745,157.47,157.43,0.12502]
[1727661828361,3.8073,157.5,157.43,0.12502]
[1727661828562,3.1744,157.48,157.43,0.12502]
[1727661828970,3.8073,157.5,157.43,0.12502]
[1727661829571,3.1742,157.48,157.43,0.12502]
[1727661829771,3.8073,157.5,157.44,3.1748]
[1727661830069,3.8073,157.5,157.43,0.12502]
[1727661831068,3.1743,157.48,157.43,0.12502]
[1727661831963,3.8073,157.5,157.43,0.12502]
[1727661833175,3.1742,157.48,157.43,3.30002]
[1727661833770,3.8073,157.5,157.43,0.12502]
[1727661833971,3.8073,157.5,157.45,3.1746]
[1727661833972,3.174,157.49,157.45,3.1746]
[1727661834168,3.18392471,157.56,157.43,0.12502]
[1727661834365,3.1737,157.51,157.46,3.1744]
[1727661835071,1.33,157.54,157.46,3.1744]
[1727661836277,1.33,157.54,157.44,19.54]
[1727661836770,1.33,157.54,157.46,3.1746]
[1727661836771,3.1734,157.52,157.46,3.1746]
[1727661837866,3.1734,157.52,157.47,3.1743]
[1727661838375,1.33,157.54,157.44,19.54]
[1727661838577,3.1736,157.51,157.46,3.1745]
[1727661839567,3.1736,157.51,157.44,19.54]
[1727661840078,3.1736,157.51,157.46,3.1744]
[1727661840380,1.33,157.54,157.46,3.1744]
[1727661840571,3.1741,157.49,157.45,3.1747]
[1727661840981,3.1741,157.49,157.44,19.54]
[1727661841181,3.1736,157.51,157.46,3.1744]
[1727661841678,3.1736,157.51,157.47,12.19]
[1727661841875,1.33,157.54,157.47,12.19]
[1727661842077,3.1732,157.53,157.49,12.19]
[1727661842581,3.1732,157.53,157.49,15.3638]
[1727661842778,3.1732,157.53,157.44,3.9492]
[1727661842779,3.1738,157.51,157.47,15.36789034]
[1727661843086,1.33,157.54,157.45,12.19]
[1727661843269,1.33,157.54,157.43,12.31502]
[1727661843270,3.1746,157.46,157.43,12.31502]
[1727661843466,15.44476402,157.49,157.43,0.12502]
[1727661843671,2.5839,157.48,157.43,0.12502]
[1727661844072,3.175,157.44,157.43,0.12502]
[1727661844382,12.19,157.45,157.37,0.12502]
[1727661844977,3.1762,157.38,157.37,0.12502]
[1727661845275,12.19,157.42,157.37,0.12502]
[1727661845678,3.1761,157.39,157.37,0.12502]
[1727661845885,12.19,157.44,157.37,0.12502]
[1727661846378,3.1754,157.42,157.37,0.12502]
[1727661846984,3.1753,157.43,157.37,0.12502]
[1727661847181,13.4258,157.47,157.37,0.12502]
[1727661847382,13.4258,157.47,157.37,15.49122]
[1727661847579,3.1754,157.42,157.37,0.12502]
[1727661847776,3.19759291,157.41,157.31,0.12502]
[1727661848088,19.65502,157.43,157.31,0.12502]
[1727661848281,0.12502,157.43,157.31,0.12502]
[1727661848682,0.12502,157.43,157.32,19.53]
[1727661848885,3.1756,157.41,157.32,19.53]
[1727661849186,0.12502,157.43,157.32,19.53]
[1727661849675,3.1756,157.41,157.35,3.1767]
[1727661849881,0.12502,157.43,157.32,19.53]
[1727661850088,3.1756,157.41,157.36,3.1764]
[1727661850280,0.12502,157.43,157.32,19.53]
[1727661850481,0.12502,157.43,157.35,19.53]
[1727661850885,3.1754,157.42,157.35,19.53]
[1727661851182,0.12502,157.43,157.35,19.53]
[1727661851385,3.1758,157.4,157.35,22.7067]
[1727661851583,0.12502,157.43,157.35,3.1767]
[1727661851778,0.12502,157.43,157.32,19.53]
[1727661851980,3.1763,157.38,157.33,3.177]
[1727661852395,3.1763,157.38,157.32,19.53]
[1727661852596,3.1763,157.38,157.34,3.1768]
[1727661852891,3.1763,157.38,157.32,19.53]
[1727661852892,3.1765,157.37,157.32,19.53]
[1727661853194,3.1765,157.37,157.33,3.1772]
[1727661854293,3.20553843,157.41,157.32,19.53]
[1727661854490,3.1762,157.38,157.32,19.53]
[1727661854991,3.23191754,157.41,157.32,19.53]
[1727661855179,0.12502,157.43,157.32,19.53]
[1727661856698,3.1763,157.38,157.34,3.1768]
[1727661857099,0.12502,157.43,157.32,19.53]
[1727661857799,3.1758,157.4,157.35,3.1768]
[1727661858098,0.12502,157.43,157.32,19.53]
[1727661858401,3.1758,157.4,157.34,3.1769]
[1727661858706,0.12502,157.43,157.34,3.1769]
[1727661859201,3.1761,157.39,157.34,3.1769]
[1727661859595,3.1761,157.39,157.34,3.177]
[1727661860498,3.12175867,157.4,157.33,3.1771]
[1727661860696,0.12502,157.43,157.31,0.12502]
[1727661860697,19.65502,157.43,157.31,0.12502]
[1727661861001,3.1759,157.4,157.32,3.1772]
[1727661861299,3.20914504,157.39,157.32,3.1772]
[1727661861497,3.1766,157.37,157.32,3.1772]
[1727661861800,3.17863925,157.39,157.32,3.1772]
[1727661861998,3.1767,157.36,157.32,3.1772]
[1727661862694,3.1768,157.35,157.32,3.1772]
[1727661863500,3.1767,157.36,157.32,3.1772]
[1727661863691,1.3166,157.38,157.31,0.12502]
[1727661863890,1.3166,157.38,157.33,3.177]
[1727661865708,3.1765,157.37,157.33,3.177]
[1727661865893,3.1765,157.37,157.31,0.12502]
[1727661866093,3.1762,157.38,157.32,19.53]
[1727661866389,1.3644,157.42,157.32,19.53]
[1727661866592,3.1763,157.38,157.32,19.53]
[1727661867189,3.1762,157.38,157.32,19.53]
[1727661867391,1.3644,157.42,157.32,19.53]
[1727661867392,3.14523787,157.39,157.32,19.53]
[1727661867598,13.5199,157.41,157.31,12.32502]
[1727661867788,16.62000612,157.41,157.31,12.32502]
[1727661867988,1.2601,157.4,157.31,12.32502]
[1727661868200,3.1767,157.36,157.33,3.1772]
[1727661868400,1.2601,157.4,157.31,12.32502]
[1727661868608,3.1768,157.35,157.32,3.1774]
[1727661869301,3.1767,157.36,157.33,3.1772]
[1727661869901,1.2601,157.4,157.34,3.1768]
[1727661870402,1.2601,157.4,157.35,3.1767]
[1727661870703,1.2601,157.4,157.33,12.2]
[1727661870902,3.1765,157.37,157.34,3.1769]
[1727661871103,3.1765,157.37,157.33,12.2]
[1727661872101,1.2601,157.4,157.33,12.2]
[1727661873003,1.2601,157.4,157.31,0.12502]
[1727661873710,12.2,157.39,157.31,0.12502]
[1727661874008,3.177,157.34,157.31,0.12502]
[1727661875803,3.1774,157.32,157.31,0.12502]
[1727661876001,12.2,157.35,157.25,0.12502]
[1727661876198,1.2492,157.34,157.25,0.12502]
[1727661876398,13.5619,157.33,157.25,0.12502]
[1727661876599,3.15410067,157.32,157.25,3.30382]
[1727661876804,3.1776,157.31,157.25,0.12502]
[1727661876990,3.1776,157.31,157.26,3.1786]
[1727661877303,4.56750398,157.33,157.25,0.12502]
[1727661877803,1.3619,157.33,157.26,12.2]
[1727661878303,4.5722728,157.33,157.26,12.2]
[1727661878507,4.5722728,157.33,157.25,0.12502]
[1727661879396,3.1779,157.3,157.25,3.30382]
[1727661881007,4.5722728,157.33,157.25,0.12502]
[1727661881510,1.3619,157.33,157.25,0.12502]
[1727661881708,3.1776,157.31,157.26,3.1785]
[1727661882006,1.3619,157.33,157.27,12.2]
[1727661882219,3.1776,157.32,157.27,15.3784]
[1727661882403,4.60424761,157.33,157.25,0.12502]
[1727661882598,1.3619,157.33,157.25,0.12502]
[1727661882908,3.17302999,157.32,157.25,0.12502]
[1727661883102,3.1778,157.3,157.25,3.30362]
[1727661883303,3.1778,157.3,157.25,0.12502]
[1727661883507,3.17302999,157.32,157.25,0.12502]
[1727661883808,3.178,157.3,157.25,3.30382]
[1727661884102,3.17302999,157.32,157.25,3.30382]
[1727661884500,3.1778,157.3,157.25,3.30382]
[1727661884701,3.1778,157.3,157.26,3.1786]
[1727661886005,3.1776,157.31,157.27,3.1784]
[1727661886209,1.3619,157.33,157.26,12.2]
[1727661886402,3.1778,157.3,157.26,15.3786]
[1727661887102,3.1779,157.3,157.25,3.30372]
[1727661887307,4.5492395,157.33,157.25,3.30372]
[1727661887510,3.178,157.3,157.25,3.30372]
[1727661887713,3.178,157.3,157.26,3.1786]
[1727661888513,3.178,157.3,157.25,0.12502]
[1727661888715,4.5492395,157.33,157.25,3.30372]
[1727661889215,4.5492395,157.33,157.25,0.12502]
[1727661890809,3.1779,157.3,157.25,3.30362]
[1727661891603,3.1779,157.3,157.25,0.12502]
[1727661891799,3.1779,157.3,157.26,3.1786]
[1727661893106,3.1779,157.3,157.25,0.12502]
[1727661893107,3.1781,157.29,157.25,3.30382]
[1727661895502,3.1781,157.29,157.25,11.12382]
[1727661896211,3.1781,157.29,157.27,7.82]
[1727661897216,4.5492395,157.33,157.28,7.82]
[1727661897217,1.3619,157.33,157.28,7.82]
[1727661897810,3.1776,157.31,157.28,7.82]
[1727661898011,1.3619,157.33,157.28,7.82]
[1727661899213,3.1776,157.32,157.27,3.1783]
[1727661899519,7.82,157.32,157.26,7.82]